lending/lending_fUSD_20260310
["ID","MTS","AMOUNT","RATE_DAILY","PERIOD"]
[408142750,1773170919572,-300.0,0.00014469,2]
[408142751,1773170919606,-300.0,0.0001447,2]
[408142752,1773170919637,-1552.64,0.00014471,2]
[408142753,1773170919671,-241.4865179,0.0001479,2]
[408142754,1773170919683,-200.0,0.0001479,2]
[408142755,1773170919696,-1253.1634821,0.0001479,2]
[408142756,1773170919706,-1200.0,0.00014917,2]
[408142757,1773170919716,-1957.93744577,0.00014918,2]
[408142758,1773170919728,-42.06255423,0.00014918,2]
[408142759,1773170919738,-257.93744577,0.00014918,2]
[408142760,1773170919753,-42.05255423,0.00014918,2]
[408142761,1773170919763,-250.0,0.00015,2]
[408142762,1773170919773,-150.99,0.00015,2]
[408142763,1773170919784,-156.95744577,0.00015,2]
[408142764,1773170919799,-300.0,0.00015,2]
[408142765,1773170919833,-250.0,0.00015,2]
[408142766,1773170919845,-600.0,0.00015,2]
[408142767,1773170919858,-300.0,0.00015,2]
[408142768,1773170919870,-500.0,0.00015,2]
[408142769,1773170919883,-268.19081318,0.00015,2]
[408142770,1773170919897,-250.0,0.00015,2]
[408142771,1773170919917,-150.0,0.00015,2]
[408142772,1773170919930,-300.0,0.00015,2]
[408142773,1773170919947,-300.0,0.00015,2]
[408142774,1773170919963,-1552.64,0.00015,2]
[408142775,1773170919975,-1694.65,0.00015,2]
[408142776,1773170961027,-4069.19065795,0.000149,2]
[408142779,1773171031711,-200.0,0.000147,5]
[408142780,1773171031720,-221.05764,0.0001475,2]
[408142781,1773171031731,-259.138455,0.0001475,2]
[408142782,1773171031740,-47.041545,0.000148,2]
[408142783,1773171031751,-437.18897472,0.000148,2]
[408142784,1773171031763,-871.83149132,0.000148,2]
[408142785,1773171031774,-832.33893487,0.000148,2]
[408142786,1773171031786,-294.40797712,0.000148,2]
[408142787,1773171031801,-400.0,0.000148,2]
[408142788,1773171031812,-584.03326495,0.000148,2]
[408142789,1773171031841,-693.6,0.000148,2]
[408142790,1773171031853,-6366.51275955,0.000148,2]
[408142791,1773171031863,-500.0,0.000148,5]
[408142792,1773171031872,-1200.0,0.00014824,2]
[408142793,1773171031881,-1550.4048016,0.00014825,2]
[408142794,1773171031890,-1322.3516824,0.00014825,2]
[408142795,1773171031901,-305.7249337,0.00014825,2]
[408142796,1773171031910,-857.30624689,0.0001489,2]
[408142797,1773171031919,-300.0,0.00014899,2]
[408142798,1773171031928,-45933.03132758,0.000149,2]
[408142800,1773171031939,-56537.14498876,0.000149,2]
[408142801,1773171031954,-15905.16557435,0.000149,2]
[408142806,1773171032100,-32549.55747831,0.000149,2]
[408142807,1773171032113,-8305.75708455,0.000149,2]
[408142808,1773171032124,-2182.37961044,0.000149,2]
[408142813,1773171037826,-1256.40417357,0.000149,2]
[408142814,1773171037837,-500.0,0.000149,2]
[408142815,1773171037938,-2332761.36910449,0.000149,2]
[408142816,1773171037949,-700.0,0.000149,5]
[408142817,1773171037961,-3377.55174105,0.00015,2]
[408142818,1773171037971,-7671.75,0.00015,2]
[408142819,1773171037980,-359.03555763,0.00015,30]
[408142820,1773171037991,-1694.65,0.0001516,2]
[408142821,1773171038000,-2141.23,0.00015359,2]
[408142822,1773171038009,-1322.0,0.00015382,2]
[408142823,1773171038019,-1322.35168236,0.00015389,2]
[408142824,1773171038029,-1694.65,0.0001553,2]
[408142825,1773171038039,-1550.40480153,0.0001555,2]
[408142826,1773171038048,-200.0,0.00015574,2]
[408142827,1773171038058,-388.66679334,0.00015636,2]
[408142828,1773171038067,-5000.0,0.00015688,2]
[408142829,1773171038075,-832.04401136,0.000157,3]
[408142830,1773171038085,-288.52,0.00015709,2]
[408142831,1773171038094,-10223.35,0.00015709,2]
[408142833,1773171038103,-349.0,0.00015713,2]
[408142834,1773171038111,-437.19249536,0.00015734,2]
[408142836,1773171038120,-500.0,0.00015734,2]
[408142838,1773171038129,-500.0,0.00015734,2]
[408142840,1773171038138,-500.0,0.00015734,2]
[408142842,1773171038147,-500.0,0.00015734,2]
[408142843,1773171038157,-500.0,0.00015734,2]
[408142844,1773171038167,-500.0,0.00015734,2]
[408142845,1773171038176,-500.0,0.00015734,2]
[408142846,1773171038185,-500.0,0.00015734,2]
[408142847,1773171038194,-500.0,0.00015734,2]
[408142848,1773171038204,-500.0,0.00015734,2]
[408142849,1773171038213,-500.0,0.00015734,2]
[408142850,1773171038222,-500.0,0.00015734,2]
[408142851,1773171038230,-500.0,0.00015734,2]
[408142852,1773171038239,-500.0,0.00015734,2]
[408142853,1773171038248,-500.0,0.00015734,2]
[408142854,1773171038262,-500.0,0.00015734,2]
[408142855,1773171038271,-500.0,0.00015734,2]
[408142856,1773171038280,-500.0,0.00015734,2]
[408142857,1773171038291,-500.0,0.00015734,2]
[408142858,1773171038300,-500.0,0.00015734,2]
[408142859,1773171038310,-500.0,0.00015734,2]
[408142860,1773171038320,-530.6305335,0.00015734,2]
[408142861,1773171038630,-500.0,0.00015734,2]
[408142862,1773171038671,-500.0,0.00015734,2]
[408142863,1773171038680,-500.0,0.00015734,2]
[408142864,1773171038689,-500.0,0.00015734,2]
[408142865,1773171038699,-500.0,0.00015734,2]
[408142866,1773171038708,-417.12438893,0.00015734,2]
[408142867,1773171038717,-500.0,0.00015734,2]
[408142868,1773171038726,-500.0,0.00015734,2]
[408142869,1773171038736,-500.0,0.00015734,2]
[408142870,1773171038745,-500.0,0.00015734,2]
[408142871,1773171038754,-500.0,0.00015734,2]
[408142872,1773171038764,-500.0,0.00015734,2]
[408142873,1773171038773,-500.0,0.00015734,2]
[408142874,1773171038782,-500.0,0.00015734,2]
[408142875,1773171038791,-500.0,0.00015734,2]
[408142876,1773171038801,-500.0,0.00015734,2]
[408142877,1773171038810,-500.0,0.00015734,2]
[408142878,1773171038819,-500.0,0.00015734,2]
[408142879,1773171038828,-308.8335762,0.00015734,2]
[408142880,1773171038837,-219.26511028,0.00015734,2]
[408142881,1773171038847,-640405.9028,0.00015735,2]
[408142882,1773171038855,-201.1284132,0.00015736,2]
[408142883,1773171038864,-197.7637615,0.00015736,2]
[408142884,1773171038873,-32933.015,0.00015736,2]
[408142885,1773171038883,-2500.0,0.00015736,2]
[408142886,1773171038892,-456.67098084,0.00015773,2]
[408142887,1773171038901,-500.0,0.00015773,2]
[408142888,1773171038910,-1008.35756594,0.00015835,5]
[408142889,1773171038919,-964.01,0.00015835,2]
[408142890,1773171038928,-160.0,0.00015836,3]
[408142891,1773171038937,-155.0,0.00015836,3]
[408142892,1773171038950,-167.0,0.00015836,3]
[408142893,1773171038959,-510.21,0.00015836,2]
[408142894,1773171038968,-510.21,0.00015836,2]
[408142895,1773171038981,-510.21,0.00015836,2]
[408142896,1773171038992,-510.21,0.00015836,2]
[408142897,1773171039001,-510.21,0.00015836,2]
[408142898,1773171039010,-510.21,0.00015836,2]
[408142899,1773171039020,-510.21,0.00015836,2]
[408142900,1773171039029,-500.0,0.00015836,2]
[408142901,1773171039038,-509.45035815,0.00015836,2]
[408142902,1773171039047,-500.0,0.00015836,2]
[408142903,1773171039056,-500.0,0.00015836,2]
[408142904,1773171039065,-500.0,0.00015836,2]
[408142905,1773171039074,-500.0,0.00015836,2]
[408142906,1773171039083,-500.0,0.00015836,2]
[408142907,1773171039092,-500.0,0.00015836,2]
[408142908,1773171039101,-500.0,0.00015836,2]
[408142909,1773171039110,-500.0,0.00015836,2]
[408142910,1773171039120,-500.0,0.00015836,2]
[408142911,1773171039132,-500.0,0.00015836,2]
[408142912,1773171039140,-500.0,0.00015836,2]
[408142913,1773171039150,-500.0,0.00015836,2]
[408142914,1773171039159,-500.0,0.00015836,2]
[408142915,1773171039168,-504.92020981,0.00015836,2]
[408142916,1773171039177,-500.0,0.00015836,2]
[408142917,1773171039186,-500.0,0.00015836,2]
[408142918,1773171039195,-500.0,0.00015836,2]
[408142919,1773171039204,-500.0,0.00015836,2]
[408142920,1773171039213,-500.0,0.00015836,2]
[408142921,1773171039222,-500.0,0.00015836,2]
[408142922,1773171039231,-500.0,0.00015836,2]
[408142923,1773171039240,-500.0,0.00015836,2]
[408142924,1773171039249,-500.0,0.00015836,2]
[408142925,1773171039258,-500.0,0.00015836,2]
[408142926,1773171039267,-500.0,0.00015836,2]
[408142927,1773171039276,-500.0,0.00015836,2]
[408142928,1773171039285,-500.0,0.00015836,2]
[408142929,1773171039294,-500.0,0.00015836,2]
[408142930,1773171039303,-500.0,0.00015836,2]
[408142931,1773171039321,-500.0,0.00015836,2]
[408142932,1773171039332,-500.0,0.00015836,2]
[408142933,1773171039341,-500.0,0.00015836,2]
[408142934,1773171039351,-500.0,0.00015836,2]
[408142935,1773171039360,-500.0,0.00015836,2]
[408142936,1773171039369,-500.0,0.00015836,2]
[408142937,1773171039379,-500.0,0.00015836,2]
[408142938,1773171039388,-500.0,0.00015836,2]
[408142939,1773171039398,-500.0,0.00015836,2]
[408142940,1773171039408,-500.0,0.00015836,2]
[408142941,1773171039418,-500.0,0.00015836,2]
[408142942,1773171039427,-500.0,0.00015836,2]
[408142943,1773171039436,-500.0,0.00015836,2]
[408142944,1773171039445,-305.72493368,0.0001584,2]
[408142945,1773171039455,-931.71663311,0.00015854,2]
[408142946,1773171039464,-500.0,0.00015873,2]
[408142947,1773171039473,-500.37983606,0.00015873,2]
[408142948,1773171039483,-1694.65,0.00015899,2]
[408142949,1773171039492,-1000.0,0.000159,5]
[408142950,1773171039503,-1322.35168236,0.00015953,2]
[408142951,1773171039513,-964.01,0.00016109,2]
[408142952,1773171039523,-250.0,0.0001617,2]
[408142953,1773171039533,-1694.65,0.00016269,2]
[408142954,1773171039542,-1550.40480153,0.00016275,2]
[408142955,1773171039551,-300.0,0.0001628,2]
[408142956,1773171039560,-286.95333336,0.0001628,2]
[408142957,1773171039570,-600.0,0.0001628,2]
[408142958,1773171039580,-1680.0,0.00016306,2]
[408142959,1773171039590,-1000.0,0.00016321,2]
[408142960,1773171039600,-964.01,0.00016383,2]
[408142961,1773171039610,-1000.0,0.00016421,2]
[408142962,1773171039620,-500.0,0.00016438,2]
[408142963,1773171039629,-500.0,0.00016438,2]
[408142964,1773171039638,-500.0,0.00016438,2]
[408142965,1773171039648,-500.0,0.00016438,2]
[408142966,1773171039658,-500.0,0.00016438,2]
[408142967,1773171039667,-500.0,0.00016438,2]
[408142968,1773171039676,-500.0,0.00016438,2]
[408142969,1773171039686,-1322.35168236,0.00016517,2]
[408142970,1773171039696,-964.01,0.00016657,2]
[408142971,1773171039706,-2000.0,0.00016782,2]
[408142972,1773171039715,-305.72493368,0.00016855,2]
[408142973,1773171039724,-1500.0,0.00016868,2]
[408142974,1773171039734,-1000.0,0.000169,2]
[408142975,1773171039743,-930.3724,0.000169,2]
[408142976,1773171039754,-964.01,0.00016931,2]
[408142977,1773171039764,-500.0,0.00016968,2]
[408142978,1773171039773,-536.80884023,0.00016999,2]
[408142979,1773171039783,-500.0,0.00016999,2]
[408142980,1773171039792,-500.0,0.00016999,2]
[408142981,1773171039802,-500.0,0.00016999,2]
[408142982,1773171039812,-300.0,0.00017,2]
[408142983,1773171039821,-1550.40480153,0.00017,2]
[408142984,1773171039831,-510.0,0.00017,2]
[408142985,1773171039840,-1322.35168236,0.00017081,2]
[408142986,1773171039849,-964.01,0.00017205,2]
[408142987,1773171039859,-2000.0,0.00017416,2]
[408142988,1773171039868,-964.01,0.00017479,2]
[408142989,1773171039877,-1322.35168236,0.00017644,2]
[408142990,1773171039887,-1550.40480153,0.00017725,2]
[408142991,1773171039896,-964.01,0.00017753,2]
[408142992,1773171039905,-388.66679332,0.00017768,2]
[408142993,1773171039914,-197.76376148,0.00017818,2]
[408142994,1773171039924,-305.72493368,0.0001787,2]
[408142995,1773171039933,-5264.65,0.00017926,2]
[408142996,1773171039942,-2351.0,0.00017937,2]
[408142997,1773171039954,-2500.0,0.00017964,2]
[408142998,1773171039963,-500.0,0.00017999,2]
[408142999,1773171039972,-964.01,0.00018027,2]
[408143000,1773171039981,-2101.96925581,0.00018049,2]
[408143001,1773171039991,-1322.35168236,0.00018208,2]
[408143002,1773171040000,-964.01,0.00018301,2]
[408143003,1773171040011,-1550.40480153,0.0001845,2]
[408143004,1773171040021,-2101.96925581,0.00018512,2]
[408143005,1773171040030,-3000.0,0.00018512,2]
[408143006,1773171040041,-510.0,0.00018537,3]
[408143007,1773171040051,-964.01,0.00018575,2]
[408143008,1773171040060,-2000.0,0.00018647,2]
[408143009,1773171040070,-1322.35168236,0.00018772,2]
[408143010,1773171040079,-489.75011978,0.00018836,2]
[408143011,1773171040088,-489.72,0.00018836,2]
[408143012,1773171040097,-470.31827955,0.00018836,2]
[408143013,1773171040106,-964.12410102,0.00018849,2]
[408143014,1773171040116,-305.72493368,0.00018885,2]
[408143015,1773171040127,-2101.96925581,0.00018975,2]
[408143016,1773171040137,-500.0,0.00018999,2]
[408143017,1773171040147,-424.139,0.00018999,2]
[408143018,1773171040158,-250.0,0.00018999,2]
[408143019,1773171040168,-670.58624095,0.00018999,2]
[408143020,1773171040178,-1328.27659266,0.00018999,2]
[408143021,1773171040187,-500.0,0.00018999,2]
[408143022,1773171040197,-187.88530125,0.00018999,2]
[408143023,1773171040207,-500.0,0.00018999,2]
[408143024,1773171040216,-1500.0,0.00018999,2]
[408143025,1773171040226,-626.54460475,0.00018999,2]
[408143026,1773171040234,-1500.0,0.00018999,2]
[408143027,1773171040245,-1500.0,0.00018999,2]
[408143028,1773171040256,-1500.0,0.00018999,2]
[408143029,1773171040266,-1500.0,0.00018999,2]
[408143030,1773171040277,-1500.0,0.00018999,2]
[408143031,1773171040286,-1500.0,0.00018999,2]
[408143032,1773171040295,-1500.0,0.00018999,2]
[408143033,1773171040304,-1500.0,0.00018999,2]
[408143034,1773171040313,-1500.0,0.00018999,2]
[408143035,1773171040323,-3000.0,0.00018999,2]
[408143036,1773171040331,-1500.0,0.00018999,2]
[408143037,1773171040341,-3000.0,0.00018999,2]
[408143038,1773171040350,-1500.0,0.00018999,2]
[408143039,1773171040358,-3000.0,0.00018999,2]
[408143040,1773171040367,-1500.0,0.00018999,2]
[408143041,1773171040376,-3000.0,0.00018999,2]
[408143042,1773171040385,-1500.0,0.00018999,2]
[408143043,1773171040394,-1506.77280813,0.00018999,2]
[408143044,1773171040403,-3000.0,0.00018999,2]
[408143045,1773171040416,-3000.0,0.00018999,2]
[408143046,1773171040426,-3000.0,0.00018999,2]
[408143047,1773171040436,-250.0,0.00018999,2]
[408143048,1773171040445,-3000.0,0.00018999,2]
[408143049,1773171040454,-151.0,0.00018999,2]
[408143050,1773171040463,-3000.0,0.00018999,2]
[408143051,1773171040474,-3000.0,0.00018999,2]
[408143052,1773171040483,-300.0,0.00018999,2]
[408143053,1773171040493,-184.98336144,0.00018999,2]
[408143054,1773171040503,-500.0,0.00018999,2]
[408143055,1773171040513,-174.61919141,0.00018999,2]
[408143056,1773171040524,-243.08739965,0.00018999,2]
[408143057,1773171040534,-786.08571,0.00019,2]
[408143058,1773171040545,-13667.64153885,0.00019,2]
[408143059,1773171040558,-500.0,0.00019,2]
[408143060,1773171040569,-500.0,0.00019054,2]
[408143061,1773171040580,-151.0,0.00019054,2]
[408143062,1773171040590,-1500.0,0.0001906,2]
[408143063,1773171040599,-500.0,0.00019109,2]
[408143064,1773171040608,-151.0,0.00019109,2]
[408143065,1773171040618,-160.0,0.00019116,2]
[408143066,1773171040628,-172.91703981,0.00019116,2]
[408143067,1773171040638,-350.0,0.00019153,2]
[408143068,1773171040647,-500.0,0.00019164,2]
[408143069,1773171040659,-151.0,0.00019164,2]
[408143070,1773171040669,-1550.40480153,0.00019175,2]
[408143071,1773171040678,-3000.0,0.00019178,2]
[408143072,1773171040688,-3000.0,0.00019178,2]
[408143073,1773171040697,-3000.0,0.00019178,2]
[408143074,1773171040706,-3000.0,0.00019178,2]
[408143075,1773171040716,-3000.0,0.00019178,2]
[408143076,1773171040725,-3000.0,0.00019178,2]
[408143077,1773171040735,-3000.0,0.00019178,2]
[408143078,1773171040744,-787.0,0.00019178,2]
[408143079,1773171040753,-268.96748512,0.00019178,2]
[408143080,1773171040762,-500.0,0.00019219,2]
[408143081,1773171040772,-151.0,0.00019219,2]
[408143082,1773171040785,-500.0,0.00019233,7]
[408143083,1773171040794,-500.0,0.00019274,2]
[408143084,1773171040804,-151.0,0.00019274,2]
[408143085,1773171040813,-1000.0,0.00019274,2]
[408143086,1773171040822,-233.38,0.00019299,2]
[408143087,1773171040831,-10000.0,0.000193,2]
[408143088,1773171040841,-170.962384,0.00019305,2]
[408143089,1773171040850,-922.0,0.00019321,2]
[408143090,1773171040859,-1213.0,0.00019321,2]
[408143092,1773171040869,-1042.0,0.00019321,2]
[408143093,1773171040879,-5995.0,0.00019321,2]
[408143094,1773171040888,-500.0,0.00019329,2]
[408143095,1773171040897,-151.0,0.00019329,2]
[408143096,1773171040907,-1322.35168236,0.00019336,2]
[408143097,1773171040916,-500.0,0.00019384,2]
[408143098,1773171040926,-289.93018281,0.00019384,2]
[408143099,1773171040935,-500.0,0.00019399,2]
[408143100,1773171040945,-500.0,0.00019399,2]
[408143101,1773171040958,-500.0,0.00019399,2]
[408143102,1773171040967,-500.0,0.00019399,2]
[408143103,1773171040980,-500.0,0.00019399,2]
[408143104,1773171040991,-500.0,0.00019399,2]
[408143105,1773171041000,-500.0,0.00019399,2]
[408143106,1773171041009,-500.0,0.00019399,2]
[408143107,1773171041019,-500.0,0.00019399,2]
[408143108,1773171041028,-500.0,0.00019399,2]
[408143109,1773171041038,-500.0,0.00019399,2]
[408143110,1773171041047,-500.0,0.00019399,2]
[408143111,1773171041057,-1200.0,0.000194,7]
[408143112,1773171041066,-2101.96925581,0.00019437,2]
[408143113,1773171041075,-500.0,0.00019439,2]
[408143114,1773171041084,-500.0,0.00019494,2]
[408143115,1773171041094,-500.0,0.00019499,2]
[408143116,1773171041103,-500.0,0.00019499,2]
[408143117,1773171041112,-2000.0,0.000195,2]
[408143118,1773171041122,-200.0,0.000195,7]
[408143119,1773171041132,-500.0,0.00019507,7]
[408143120,1773171041141,-269.49635785,0.00019547,2]
[408143121,1773171041151,-1000.0,0.00019548,2]
[408143122,1773171041160,-500.0,0.00019549,2]
[408143123,1773171041174,-250.0,0.00019589,2]
[408143124,1773171041183,-500.0,0.00019599,2]
[408143125,1773171041193,-240.36,0.00019599,2]
[408143126,1773171041202,-1428.35284987,0.000196,2]
[408143127,1773171041212,-292.21,0.000196,30]
[408143128,1773171041221,-200.0,0.000196,7]
[408143129,1773171041230,-500.0,0.00019604,2]
[408143130,1773171041239,-250.0,0.00019619,2]
[408143131,1773171041248,-250.0,0.00019642,2]
[408143132,1773171041257,-250.0,0.00019659,2]
[408143133,1773171041266,-500.0,0.00019659,2]
[408143134,1773171041275,-8610.01239405,0.000197,2]
[408143135,1773171041284,-200.0,0.000197,7]
[408143136,1773171041294,-168.0,0.0001971,2]
[408143137,1773171041303,-250.0,0.00019712,2]
[408143138,1773171041312,-857.30624689,0.00019716,2]
[408143139,1773171041322,-168.047,0.00019725,2]
[408143140,1773171041331,-3435.719,0.00019725,2]
[408143141,1773171041340,-250.0,0.00019726,2]
[408143142,1773171041350,-174.359556,0.00019726,2]
[408143143,1773171041360,-174.359556,0.00019726,2]
[408143144,1773171041370,-5164.900926,0.00019726,2]
[408143145,1773171041383,-5164.900926,0.00019726,2]
[408143146,1773171041393,-5164.900926,0.00019726,2]
[408143147,1773171041403,-500.0,0.00019726,2]
[408143148,1773171041412,-500.0,0.00019726,2]
[408143149,1773171041423,-404.44403902,0.00019726,2]
[408143150,1773171041432,-500.0,0.00019726,2]
[408143151,1773171041442,-439.8301473,0.00019726,2]
[408143152,1773171041451,-1766.57,0.00019726,2]
[408143153,1773171041462,-1766.57,0.00019726,2]
[408143154,1773171041472,-1766.57,0.00019726,2]
[408143155,1773171041482,-1766.57,0.00019726,2]
[408143156,1773171041494,-1766.57,0.00019726,2]
[408143157,1773171041505,-1766.57,0.00019726,2]
[408143158,1773171041515,-1766.57,0.00019726,2]
[408143159,1773171041526,-1766.57,0.00019726,2]
[408143160,1773171041537,-1766.57,0.00019726,2]
[408143161,1773171041546,-1766.57,0.00019726,2]
[408143162,1773171041556,-1766.57,0.00019726,2]
[408143163,1773171041567,-1766.57,0.00019726,2]
[408143164,1773171041576,-1766.57,0.00019726,2]
[408143165,1773171041586,-1766.57,0.00019726,2]
[408143166,1773171041595,-1766.57,0.00019726,2]
[408143167,1773171041604,-1766.57,0.00019726,2]
[408143168,1773171041614,-1766.57,0.00019726,2]
[408143169,1773171041623,-1766.57,0.00019726,2]
[408143170,1773171041633,-1766.57,0.00019726,2]
[408143171,1773171041643,-1766.57,0.00019726,2]
[408143172,1773171041653,-1766.57,0.00019726,2]
[408143173,1773171041663,-1766.57,0.00019726,2]
[408143174,1773171041673,-1766.57,0.00019726,2]
[408143175,1773171041682,-1766.78298099,0.00019726,2]
[408143176,1773171041692,-500.0,0.00019726,2]
[408143177,1773171041702,-500.5,0.00019726,2]
[408143178,1773171041712,-1162.45,0.00019726,2]
[408143179,1773171041722,-1162.45,0.00019726,2]
[408143180,1773171041732,-1162.45,0.00019726,2]
[408143181,1773171041742,-1162.45,0.00019726,2]
[408143182,1773171041752,-1162.45,0.00019726,2]
[408143183,1773171041762,-1162.45,0.00019726,2]
[408143184,1773171041771,-1162.45,0.00019726,2]
[408143185,1773171041781,-1162.45,0.00019726,2]
[408143186,1773171041790,-1162.45,0.00019726,2]
[408143187,1773171041800,-1162.45,0.00019726,2]
[408143188,1773171041811,-1162.45,0.00019726,2]
[408143189,1773171041820,-1162.45,0.00019726,2]
[408143190,1773171041830,-1162.45,0.00019726,2]
[408143191,1773171041839,-1162.45,0.00019726,2]
[408143192,1773171041848,-1162.45,0.00019726,2]
[408143193,1773171041858,-1162.45,0.00019726,2]
[408143194,1773171041869,-1162.45,0.00019726,2]
[408143195,1773171041878,-1162.45,0.00019726,2]
[408143196,1773171041890,-1162.45,0.00019726,2]
[408143197,1773171041900,-1162.45,0.00019726,2]
[408143198,1773171041910,-1162.45,0.00019726,2]
[408143199,1773171041919,-1162.45,0.00019726,2]
[408143200,1773171041929,-1162.45,0.00019726,2]
[408143201,1773171041938,-1162.6489105,0.00019726,2]
[408143202,1773171041958,-1250.51,0.00019726,2]
[408143203,1773171041969,-1250.51,0.00019726,2]
[408143204,1773171041978,-1250.51,0.00019726,2]
[408143205,1773171041987,-1250.51,0.00019726,2]
[408143206,1773171041998,-1250.51,0.00019726,2]
[408143207,1773171042007,-1250.51,0.00019726,2]
[408143208,1773171042016,-1250.51,0.00019726,2]
[408143209,1773171042026,-1250.51,0.00019726,2]
[408143210,1773171042036,-1250.51,0.00019726,2]
[408143211,1773171042045,-1250.51,0.00019726,2]
[408143212,1773171042054,-1250.51,0.00019726,2]
[408143213,1773171042064,-1250.51,0.00019726,2]
[408143214,1773171042073,-1250.51,0.00019726,2]
[408143215,1773171042083,-1250.51,0.00019726,2]
[408143216,1773171042093,-1250.51,0.00019726,2]
[408143217,1773171042102,-1250.51,0.00019726,2]
[408143218,1773171042112,-1250.51,0.00019726,2]
[408143219,1773171042121,-1250.51,0.00019726,2]
[408143220,1773171042130,-1250.51,0.00019726,2]
[408143221,1773171042140,-1250.51,0.00019726,2]
[408143222,1773171042149,-1250.51,0.00019726,2]
[408143223,1773171042159,-1250.51,0.00019726,2]
[408143224,1773171042169,-1250.51,0.00019726,2]
[408143225,1773171042178,-1250.68103818,0.00019726,2]
[408143226,1773171042187,-500.0,0.00019726,2]
[408143227,1773171042197,-500.0,0.00019726,2]
[408143228,1773171042206,-524.54846384,0.00019726,2]
[408143229,1773171042215,-500.0,0.00019726,2]
[408143230,1773171042225,-500.0,0.00019726,2]
[408143231,1773171042234,-500.0,0.00019726,2]
[408143232,1773171042244,-243.10314305,0.00019726,2]
[408143233,1773171042254,-300.0,0.00019726,2]
[408143234,1773171042264,-300.0,0.00019726,2]
[408143235,1773171042273,-300.0,0.00019726,2]
[408143236,1773171042283,-300.0,0.00019726,2]
[408143237,1773171042293,-300.0,0.00019726,2]
[408143238,1773171042303,-300.0,0.00019726,2]
[408143239,1773171042313,-300.0,0.00019726,2]
[408143240,1773171042323,-300.0,0.00019726,2]
[408143241,1773171042333,-300.0,0.00019726,2]
[408143242,1773171042343,-300.0,0.00019726,2]
[408143243,1773171042353,-300.0,0.00019726,2]
[408143244,1773171042362,-300.0,0.00019726,2]
[408143245,1773171042372,-302.3241753,0.00019726,2]
[408143246,1773171042382,-787.0,0.00019726,2]
[408143247,1773171042392,-3292.0,0.00019731,2]
[408143248,1773171042401,-168.0,0.00019736,2]
[408143249,1773171042411,-250.0,0.00019752,2]
[408143250,1773171042421,-1000.0,0.00019754,2]
[408143251,1773171042431,-205.85838218,0.00019769,2]
[408143252,1773171042441,-500.0,0.00019781,7]
[408143253,1773171042451,-250.0,0.00019781,2]
[408143254,1773171042460,-200.0,0.000198,7]
[408143255,1773171042470,-250.0,0.000198,2]
[408143256,1773171042479,-1938.72780102,0.0001982,2]
[408143257,1773171042489,-1000.0,0.00019822,2]
[408143258,1773171042499,-250.0,0.00019824,2]
[408143259,1773171042508,-153.36839608,0.00019837,2]
[408143260,1773171042518,-250.0,0.0001985,2]
[408143261,1773171042528,-350.0,0.00019859,2]
[408143262,1773171042538,-1000.0,0.00019859,2]
[408143263,1773171042548,-1938.72780101,0.0001986,2]
[408143264,1773171042558,-168.0,0.00019865,2]
[408143265,1773171042568,-1000.0,0.00019881,2]
[408143266,1773171042578,-151.0,0.00019897,2]